bitfinex/quotes_BTCUSD_20260311
["timestamp","ask_amount","ask_price","bid_price","bid_amount"]
[1773248186271,0.07082955,70592.0,70564.0,0.00152056]
[1773248186474,0.0611525,70591.0,70564.0,0.00152056]
[1773248187425,0.07093974,70593.0,70564.0,0.00152056]
[1773248188012,0.0611525,70592.0,70564.0,0.00152056]
[1773248188348,0.13198287,70592.0,70566.0,0.001512]
[1773248189005,0.07083037,70592.0,70566.0,0.001512]
[1773248189207,0.0611525,70591.0,70566.0,0.001512]
[1773248189409,0.0611525,70591.0,70565.0,0.07085665]
[1773248189840,0.0611525,70591.0,70558.0,0.07086368]
[1773248190044,0.0611525,70587.0,70558.0,0.07086368]
[1773248190331,0.0611525,70585.0,70558.0,0.07086368]
[1773248192754,0.0611525,70583.0,70562.0,0.07085966]
[1773248194477,0.0611525,70583.0,70561.0,0.07105966]
[1773248194478,0.0611525,70583.0,70561.0,0.0002]
[1773248194785,0.0611525,70581.0,70561.0,0.07106015]
[1773248195130,0.0611525,70581.0,70561.0,0.07250406]
[1773248195337,0.0611525,70581.0,70561.0,0.07106015]
[1773248195996,0.11297512,70577.0,70561.0,0.07106015]
[1773248196196,0.0611525,70575.0,70561.0,0.07106015]
[1773248196405,0.20251042,70575.0,70561.0,0.07106015]
[1773248196606,0.14135792,70574.0,70561.0,0.07106015]
[1773248196805,0.0611525,70575.0,70561.0,0.07106015]
[1773248197320,0.20251042,70575.0,70561.0,0.07106015]
[1773248197485,0.14135792,70574.0,70561.0,0.07106015]
[1773248197909,0.14135792,70574.0,70561.0,0.07105976]
[1773248198092,0.0611525,70574.0,70561.0,0.07105976]
[1773248198897,0.20226749,70574.0,70561.0,0.07105976]
[1773248199095,0.0611525,70574.0,70561.0,0.07105976]
[1773248199529,0.070846,70576.0,70561.0,0.07105976]
[1773248199727,0.14107137,70577.0,70561.0,0.07105976]
[1773248199949,0.07084495,70577.0,70561.0,0.07105976]
[1773248200156,0.0611525,70576.0,70561.0,0.07106014]
[1773248200554,0.0611525,70576.0,70561.0,0.0002]
[1773248200764,0.07084661,70575.0,70561.0,0.07106017]
[1773248200994,0.06153529,70574.0,70561.0,0.07106017]
[1773248202248,0.06153529,70587.0,70564.0,0.00143856]
[1773248202837,0.06153529,70585.0,70565.0,0.07085665]
[1773248203807,0.06153529,70585.0,70565.0,0.07249434]
[1773248204193,0.06153529,70585.0,70566.0,0.00161304]
[1773248204398,0.07083439,70588.0,70566.0,0.00161304]
[1773248204776,0.07083439,70588.0,70567.0,0.07085464]
[1773248204981,0.06153529,70587.0,70567.0,0.07246768]
[1773248206114,0.06153529,70587.0,70567.0,0.07085464]
[1773248206831,0.06153529,70587.0,70565.0,0.07085464]
[1773248206832,0.06153529,70584.0,70565.0,0.07085565]
[1773248207054,0.06153529,70584.0,70564.0,0.07085565]
[1773248208802,0.07083858,70583.0,70564.0,0.07085565]
[1773248209016,0.06153529,70582.0,70564.0,0.07085565]
[1773248209186,0.06153529,70582.0,70563.0,0.07085565]
[1773248210277,0.0611525,70582.0,70563.0,0.07085565]
[1773248210845,0.07084059,70581.0,70563.0,0.07085565]
[1773248211044,0.0611525,70580.0,70563.0,0.07085565]
[1773248212948,0.0708426,70579.0,70563.0,0.07085565]
[1773248213154,0.0611525,70578.0,70563.0,0.07085565]
[1773248213749,0.0611525,70578.0,70562.0,0.07085966]
[1773248214517,0.0611525,70578.0,70561.0,0.0002]
[1773248214739,0.0611525,70578.0,70561.0,0.0710597]
[1773248215160,0.0611525,70576.0,70561.0,0.0710597]
[1773248215568,0.14106584,70577.0,70562.0,0.00138115]
[1773248215714,0.07084421,70578.0,70562.0,0.00138115]
[1773248215917,0.0611525,70577.0,70561.0,0.0710597]
[1773248217272,0.13199811,70576.0,70561.0,0.0720597]
[1773248217471,0.0611525,70575.0,70561.0,0.0720597]
[1773248217853,0.0611525,70575.0,70562.0,0.07085966]
[1773248218256,0.14106584,70576.0,70563.0,0.00126921]
[1773248218442,0.14106584,70578.0,70563.0,0.00126921]
[1773248218675,0.0611525,70578.0,70562.0,0.07085966]
[1773248219077,0.0611525,70577.0,70562.0,0.07085966]
[1773248219274,0.0611525,70576.0,70562.0,0.07085966]
[1773248220346,0.20221834,70576.0,70562.0,0.07085966]
[1773248220522,0.14106584,70575.0,70562.0,0.07085966]
[1773248220727,0.0611525,70576.0,70562.0,0.07085966]
[1773248220931,0.14106584,70577.0,70562.0,0.07085966]
[1773248221128,0.14106584,70576.0,70562.0,0.07085966]
[1773248221444,0.14106584,70575.0,70562.0,0.07085966]
[1773248221643,0.0611525,70577.0,70562.0,0.07085966]
[1773248221867,0.14106584,70576.0,70562.0,0.07085966]
[1773248222074,0.0611525,70574.0,70562.0,0.07085966]
[1773248222275,0.0611525,70572.0,70558.0,0.0002]
[1773248222468,0.0611525,70572.0,70529.0,0.01124]
[1773248222469,0.0611525,70570.0,70544.0,0.07087775]
[1773248222774,0.0611525,70568.0,70544.0,0.07087775]
[1773248222950,0.14106584,70568.0,70544.0,0.07087775]
[1773248223113,0.0611525,70566.0,70544.0,0.07087775]
[1773248223313,0.28242099,70578.0,70544.0,0.07087775]
[1773248223314,0.07085866,70563.0,70544.0,0.07087775]
[1773248223514,0.0611525,70562.0,70544.0,0.07087775]
[1773248223734,0.0611525,70562.0,70544.0,0.07124937]
[1773248224464,0.0611525,70561.0,70544.0,0.07124937]
[1773248224635,0.0611525,70561.0,70544.0,0.00037162]
[1773248224833,0.0611525,70557.0,70539.0,0.07110741]
[1773248225041,0.17567919,70558.0,70539.0,0.07121892]
[1773248225226,0.0611525,70556.0,70529.0,0.01124]
[1773248225425,0.0611525,70556.0,70524.0,0.07089706]
[1773248225426,0.11285267,70554.0,70524.0,0.07089706]
[1773248225729,0.0611525,70552.0,70524.0,0.07089706]
[1773248225935,0.0611525,70550.0,70524.0,0.07089706]
[1773248226158,0.00011114,70554.0,70523.0,0.0002753]
[1773248226159,0.0611525,70548.0,70523.0,0.0002753]
[1773248226318,0.14148523,70548.0,70523.0,0.0002753]
[1773248226513,0.0611525,70550.0,70523.0,0.0002753]
[1773248226824,0.0611525,70549.0,70523.0,0.0002753]
[1773248227016,0.0611525,70548.0,70520.0,7.5e-05]
[1773248227281,0.11296381,70554.0,70520.0,7.5e-05]
[1773248227282,0.14148523,70553.0,70520.0,0.12642453]
[1773248227453,0.0611525,70551.0,70523.0,0.00097304]
[1773248227864,0.0611525,70551.0,70530.0,0.12642453]
[1773248228064,0.0611525,70553.0,70532.0,0.00111928]
[1773248228324,0.0611525,70553.0,70522.0,0.07089986]
[1773248228476,0.0611525,70553.0,70523.0,0.00111928]
[1773248229085,0.07097893,70554.0,70522.0,0.07089986]
[1773248229086,0.00011114,70554.0,70530.0,0.12642453]
[1773248229419,0.21217461,70564.0,70534.0,0.00107262]
[1773248229705,0.14131665,70564.0,70534.0,0.00118376]
[1773248229919,0.07085873,70563.0,70534.0,0.00118376]
[1773248230108,0.05699118,70570.0,70534.0,0.00118376]
[1773248230109,0.07085325,70569.0,70541.0,0.05613333]
[1773248230309,0.14129034,70570.0,70541.0,0.05613333]
[1773248230508,0.07085241,70570.0,70541.0,0.05613333]
[1773248230709,0.07085181,70570.0,70541.0,0.05613333]
[1773248231089,0.06,70563.0,70541.0,0.05613333]
[1773248232516,0.06,70563.0,70543.0,0.05613333]
[1773248232813,0.11285267,70574.0,70543.0,0.05613333]
[1773248233016,0.11285267,70571.0,70543.0,0.05613333]
[1773248233891,0.11285267,70574.0,70551.0,0.05613333]
[1773248234222,0.0002753,70577.0,70551.0,0.05598438]
[1773248234223,0.11285267,70573.0,70551.0,0.05598438]
[1773248234406,0.11285267,70576.0,70553.0,0.05613333]
[1773248234608,0.11285267,70575.0,70553.0,0.05613333]
[1773248234779,0.11285267,70576.0,70553.0,0.05613333]
[1773248235591,0.11285267,70576.0,70560.0,0.12654544]
[1773248235793,0.0002753,70577.0,70561.0,0.05613333]
[1773248236197,0.11285267,70576.0,70561.0,0.05613333]
[1773248236403,0.11285267,70575.0,70562.0,0.07085966]
[1773248236607,0.11285267,70575.0,70563.0,0.05613333]
[1773248236803,0.11322435,70575.0,70563.0,0.05613333]
[1773248238050,0.00037168,70575.0,70563.0,0.05613333]
[1773248238429,0.00037168,70575.0,70564.0,0.07085766]
[1773248238630,0.00037168,70575.0,70565.0,0.05613333]
[1773248239603,0.16902233,70581.0,70565.0,0.05613333]
[1773248239808,0.00011144,70581.0,70571.0,0.06021177]
[1773248240553,0.00011144,70581.0,70572.0,0.07084962]
[1773248240903,0.00011144,70581.0,70572.0,0.13106139]
[1773248241105,0.01124,70586.0,70573.0,0.06021177]
[1773248241349,0.07081855,70603.0,70573.0,0.06021177]
[1773248241350,1e-08,70597.0,70573.0,0.06032321]
[1773248241578,1e-08,70597.0,70588.0,0.06021177]
[1773248242256,0.00022001,70605.0,70588.0,0.06021177]
[1773248242586,0.00022001,70605.0,70590.0,0.06021177]
[1773248243219,0.00144,70604.0,70590.0,0.06021177]
[1773248244042,0.00022001,70605.0,70590.0,0.06021177]
[1773248244236,0.00144,70604.0,70590.0,0.06021177]
[1773248244436,0.07081852,70603.0,70589.0,0.07083256]
[1773248244684,0.07240015,70604.0,70589.0,0.07083256]
[1773248244848,0.00158163,70604.0,70589.0,0.07083256]
[1773248245205,0.07239951,70604.0,70589.0,0.07083256]
[1773248245540,0.00158163,70604.0,70589.0,0.13104433]
[1773248245866,0.00158163,70604.0,70590.0,0.06021177]
[1773248247105,0.0723993,70604.0,70591.0,0.07083055]
[1773248247305,0.00158163,70604.0,70592.0,0.06021177]
[1773248247857,0.00158163,70604.0,70590.0,0.07083055]
[1773248247858,0.07081852,70603.0,70585.0,0.06021177]
[1773248248062,0.07081852,70603.0,70574.0,0.13105939]
[1773248248063,0.06017874,70602.0,70574.0,0.13105939]
[1773248248452,0.06017874,70602.0,70575.0,0.06021177]
[1773248249053,0.06017874,70602.0,70585.0,0.001]
[1773248249378,0.07082052,70601.0,70580.0,0.07084159]
[1773248249579,0.00144,70600.0,70590.0,0.001]
[1773248249797,0.06017874,70599.0,70576.0,0.07084559]
[1773248250282,0.06017874,70599.0,70573.0,0.07096003]
[1773248251273,0.06017874,70599.0,70555.0,0.06021177]
[1773248251423,0.07082353,70598.0,70556.0,0.07086569]
[1773248251745,0.06017874,70597.0,70557.0,0.06021177]
[1773248252111,0.06017874,70597.0,70557.0,0.06165177]
[1773248253561,0.07082554,70596.0,70558.0,0.07086368]
[1773248253786,0.06017874,70595.0,70559.0,0.06021177]
[1773248253942,0.06017874,70593.0,70559.0,0.06021177]
[1773248255154,0.06217874,70593.0,70559.0,0.06021177]
[1773248255475,0.06117874,70593.0,70559.0,0.06021177]
[1773248255783,0.06017874,70591.0,70561.0,0.06021177]
[1773248258024,0.06017874,70588.0,70563.0,0.06021177]
[1773248259193,0.18288061,70589.0,70563.0,0.06021177]
[1773248259194,0.00144,70587.0,70563.0,0.06021177]
[1773248259439,0.06017874,70586.0,70563.0,0.06021177]
[1773248260120,0.07083658,70585.0,70564.0,0.07085766]
[1773248260336,0.06017874,70584.0,70565.0,0.06021177]
[1773248261071,0.00144,70583.0,70565.0,0.06021177]
[1773248261440,0.07083557,70587.0,70565.0,0.06021177]
[1773248261785,0.00144,70582.0,70565.0,0.06021177]
[1773248261989,0.00144,70585.0,70570.0,0.12654544]
[1773248262260,0.00144,70585.0,70573.0,0.06162158]
[1773248262556,0.00144,70585.0,70573.0,0.06147269]
[1773248264388,0.00144,70585.0,70575.0,0.06162158]
[1773248266304,0.00144,70585.0,70575.0,0.06262158]
[1773248266674,0.00144,70585.0,70576.0,0.07084561]
[1773248266873,0.00144,70585.0,70577.0,0.06162158]
[1773248267125,0.06046444,70584.0,70575.0,0.07184603]
[1773248267442,0.00144,70585.0,70576.0,0.06162158]
[1773248268869,0.00144,70585.0,70578.0,0.06162158]
[1773248270866,0.00144,70585.0,70579.0,0.0708426]
[1773248271087,0.00144,70585.0,70579.0,0.13272288]
[1773248271297,0.00022001,70591.0,70580.0,0.06188028]
[1773248271678,0.00166001,70591.0,70580.0,0.06188028]
[1773248272593,0.00166001,70591.0,70579.0,0.0708426]
[1773248273184,0.00166001,70591.0,70578.0,0.0708426]
[1773248273605,0.00166001,70591.0,70579.0,0.001]
[1773248273800,0.00166001,70591.0,70578.0,0.0708426]
[1773248274526,0.05920588,70590.0,70576.0,0.0708446]
[1773248275086,0.05920588,70590.0,70576.0,0.13272488]
[1773248275707,0.05920588,70589.0,70576.0,0.0708446]
[1773248276114,0.05920588,70588.0,70575.0,0.07084561]
[1773248276315,0.05920588,70588.0,70566.0,0.1117787]
[1773248276540,0.05920588,70588.0,70566.0,0.07085491]
[1773248276927,0.05920588,70588.0,70564.0,0.18263435]
[1773248277326,0.05920588,70586.0,70564.0,0.18263435]
[1773248277674,0.05920588,70586.0,70557.0,0.0002]
[1773248277886,0.05920588,70586.0,70552.0,0.16766806]
[1773248278043,0.05920588,70586.0,70553.0,0.07131575]
[1773248279047,0.05920588,70586.0,70553.0,0.0713153]
[1773248279473,0.05920588,70584.0,70553.0,0.0713153]
[1773248279670,0.05920588,70582.0,70553.0,0.0713153]
[1773248280288,0.05920588,70582.0,70554.0,0.06188028]
[1773248280506,0.05920588,70580.0,70554.0,0.06188028]
[1773248281123,0.05920588,70578.0,70554.0,0.06188028]
[1773248281734,0.1300495,70578.0,70556.0,0.06188028]
[1773248281917,0.07084362,70578.0,70558.0,0.06188028]
[1773248282701,0.00144,70577.0,70558.0,0.06188028]
[1773248283697,0.00144,70576.0,70558.0,0.06188028]
[1773248283899,0.00155136,70576.0,70560.0,0.06188028]
[1773248284101,0.05920588,70575.0,70554.0,0.07086765]
[1773248284447,0.06064588,70575.0,70553.0,0.07131499]
[1773248286072,0.00144,70575.0,70553.0,0.07131499]
[1773248286314,0.07228691,70575.0,70554.0,0.06188028]
[1773248286818,0.05920588,70574.0,70554.0,0.06332028]
[1773248287417,0.05920588,70574.0,70553.0,0.0004471]
[1773248287798,0.05920588,70574.0,70552.0,0.07086876]
[1773248288230,0.05920588,70572.0,70545.0,0.00014175]
[1773248288431,0.05920588,70569.0,70538.0,0.07088371]
[1773248288792,0.1300545,70573.0,70540.0,0.06188028]
[1773248289039,0.00144,70568.0,70540.0,0.06188028]
[1773248289192,0.06064588,70568.0,70540.0,0.06188028]
[1773248290223,0.07085464,70567.0,70541.0,0.07088076]
[1773248290426,0.05920588,70566.0,70542.0,0.06332028]
[1773248291559,0.05920588,70564.0,70542.0,0.06332028]
[1773248291766,0.05920588,70564.0,70545.0,0.06202203]
[1773248292561,0.05920588,70564.0,70547.0,0.06188028]
[1773248292706,0.07085387,70568.0,70547.0,0.06188028]
[1773248292913,0.07084756,70575.0,70547.0,0.06188028]
[1773248293110,0.00144,70574.0,70547.0,0.06188028]
[1773248293360,0.27161477,70576.0,70549.0,0.06188028]
[1773248293594,0.00144,70573.0,70549.0,0.06188028]
[1773248294021,0.00144,70572.0,70549.0,0.06188028]
[1773248294772,0.00144,70572.0,70551.0,0.06188028]
[1773248295451,0.07228964,70572.0,70551.0,0.06188028]
[1773248296154,0.00144,70572.0,70551.0,0.06188028]
[1773248296581,0.07228977,70572.0,70551.0,0.06188028]
[1773248297341,0.00144,70572.0,70553.0,0.06188028]
[1773248297613,0.00144,70574.0,70553.0,0.06188028]
[1773248297744,0.00144,70573.0,70555.0,0.06188028]
[1773248299001,0.14146698,70575.0,70555.0,0.06188028]
[1773248299179,0.00011136,70576.0,70555.0,0.06188028]
[1773248299378,0.00011136,70576.0,70557.0,0.06188028]
[1773248299597,0.07239734,70576.0,70557.0,0.06188028]
[1773248299918,0.06163747,70575.0,70557.0,0.06188028]
[1773248300507,0.00155136,70576.0,70557.0,0.06188028]
[1773248301056,0.06163747,70575.0,70557.0,0.06188028]
[1773248301265,0.11317743,70586.0,70560.0,0.12653764]
[1773248301471,1e-08,70585.0,70563.0,0.0599014]
[1773248301696,1e-08,70585.0,70571.0,0.0599014]
[1773248301919,1e-08,70585.0,70573.0,0.0599014]
[1773248302120,1e-08,70585.0,70575.0,0.0240178]
[1773248302328,1e-08,70585.0,70577.0,0.0599014]
[1773248302598,1e-08,70585.0,70577.0,0.0613414]
[1773248303542,1e-08,70585.0,70578.0,0.0708436]
[1773248304556,0.04986332,70582.0,70567.0,0.00144]
[1773248304897,0.04986332,70582.0,70565.0,0.0599014]
[1773248304898,0.00144,70581.0,70565.0,0.0599014]
[1773248305057,0.04977998,70580.0,70566.0,0.0613414]
[1773248305225,0.04977998,70580.0,70562.0,0.07085866]
[1773248305426,0.04977998,70578.0,70562.0,0.07085866]
[1773248305702,0.04977998,70578.0,70561.0,0.07229966]
[1773248306498,0.04977998,70578.0,70561.0,0.07085966]
[1773248307313,0.04977998,70578.0,70560.0,0.07123134]
[1773248307666,0.0708446,70577.0,70560.0,0.07123134]
[1773248308004,0.0496887,70576.0,70560.0,0.07123134]
[1773248308414,0.0496887,70576.0,70557.0,0.07186272]
[1773248308610,0.05006009,70576.0,70557.0,0.07186449]
[1773248308766,0.05006009,70576.0,70557.0,0.07186454]
[1773248309577,0.05087141,70575.0,70558.0,0.05973039]
[1773248309991,0.12015095,70574.0,70559.0,0.07086268]
[1773248310390,0.04930333,70574.0,70559.0,0.13059307]
[1773248310595,0.00144,70573.0,70560.0,0.05973039]
[1773248310809,0.00037139,70576.0,70560.0,0.05973039]
[1773248312235,0.00037139,70576.0,70562.0,0.05973039]
[1773248313412,0.0005914,70576.0,70562.0,0.05973039]
[1773248313613,0.14137825,70575.0,70562.0,0.05973039]
[1773248313838,0.14237825,70574.0,70562.0,0.05973039]
[1773248314033,0.14137825,70573.0,70562.0,0.05973039]
[1773248314271,0.14137825,70573.0,70563.0,0.07085866]
[1773248314466,0.14137825,70573.0,70564.0,0.05973039]
[1773248315282,0.14137825,70575.0,70564.0,0.05973039]
[1773248315499,0.14137825,70574.0,70564.0,0.05973039]
[1773248315779,0.14137825,70573.0,70564.0,0.05973039]
[1773248315980,0.14137825,70575.0,70564.0,0.05973039]
[1773248316288,0.14137825,70574.0,70564.0,0.05973039]
[1773248316506,0.14137825,70573.0,70565.0,0.07085665]
[1773248316649,0.0005914,70576.0,70565.0,0.07085665]
[1773248316650,0.14137825,70575.0,70566.0,0.05973039]
[1773248316846,0.14137825,70574.0,70566.0,0.05973039]
[1773248317078,0.0005914,70576.0,70565.0,0.07085665]
[1773248317079,0.14137825,70575.0,70565.0,0.07085665]
[1773248318916,0.14237825,70575.0,70565.0,0.13058704]
[1773248319115,0.14137825,70575.0,70565.0,0.13058704]
[1773248319292,0.14237825,70575.0,70565.0,0.13058704]
[1773248319667,0.14137825,70575.0,70565.0,0.13058704]
[1773248319907,0.14237825,70575.0,70565.0,0.13058704]
[1773248320284,0.14137825,70574.0,70565.0,0.13058704]
[1773248320914,0.14137825,70574.0,70563.0,0.00144]
[1773248321089,0.14137825,70574.0,70558.0,0.070863]
[1773248321090,0.04791442,70572.0,70558.0,0.070863]
[1773248321288,0.14281825,70571.0,70555.0,0.0002]
[1773248321521,0.04791442,70569.0,70555.0,0.07106665]
[1773248322112,0.04779034,70570.0,70555.0,0.07106665]
[1773248322700,0.04779034,70570.0,70555.0,0.12698179]
[1773248322943,0.00144,70569.0,70556.0,0.05591514]
[1773248323323,0.14137825,70570.0,70560.0,0.0002]
[1773248323530,0.00144,70569.0,70560.0,0.0002]
[1773248323726,0.00144,70573.0,70561.0,0.05591514]
[1773248324937,0.001,70569.0,70563.0,0.05591514]
[1773248325147,0.00144,70572.0,70563.0,0.05591514]
[1773248325551,0.0005914,70576.0,70563.0,0.05591514]
[1773248325762,0.00144,70575.0,70563.0,0.05591514]
[1773248326177,0.0005914,70576.0,70563.0,0.05591514]
[1773248326582,0.001,70573.0,70563.0,0.05691514]
[1773248326782,0.001,70573.0,70564.0,0.07085766]
[1773248326982,0.001,70573.0,70563.0,0.07185766]
[1773248327440,0.047181,70574.0,70563.0,0.07185766]
[1773248327624,0.07143708,70576.0,70563.0,0.07185766]
[1773248327817,0.07143708,70576.0,70563.0,0.07085766]
[1773248327997,0.047181,70575.0,70563.0,0.07085766]
[1773248328318,0.047181,70575.0,70561.0,0.07229866]
[1773248328319,0.047181,70575.0,70561.0,0.07085866]
[1773248328920,0.0389634,70573.0,70561.0,0.07086067]
[1773248329320,0.00144,70572.0,70562.0,0.05591514]
[1773248330595,0.0005914,70576.0,70562.0,0.05591514]
[1773248330794,0.00144,70575.0,70563.0,0.07085866]
[1773248330997,0.0005914,70576.0,70564.0,0.06101275]
[1773248331232,0.00144,70580.0,70564.0,0.06101275]
[1773248331409,0.00144,70580.0,70564.0,0.06138414]
[1773248331947,1e-08,70585.0,70564.0,0.06138414]
[1773248332901,0.00144001,70585.0,70566.0,0.06101275]
[1773248333293,0.07227698,70585.0,70566.0,0.06101275]
[1773248333499,0.21365523,70585.0,70566.0,0.06101275]
[1773248333799,0.14137825,70584.0,70566.0,0.06101275]
[1773248334021,0.07227698,70585.0,70566.0,0.06101275]
[1773248334340,0.14137825,70584.0,70566.0,0.06101275]
[1773248334927,0.04190119,70582.0,70565.0,0.07085588]
[1773248335116,0.04177793,70580.0,70565.0,0.07085588]
[1773248335319,0.14281825,70579.0,70565.0,0.07085588]
[1773248336224,0.14137825,70578.0,70565.0,0.07085588]
[1773248337178,0.21222257,70578.0,70565.0,0.07085588]
[1773248338300,0.14281825,70577.0,70565.0,0.07085588]
[1773248338481,0.14137825,70578.0,70566.0,0.06101275]
[1773248338635,0.00022001,70579.0,70566.0,0.06101275]
[1773248338840,0.001,70578.0,70566.0,0.06101275]
[1773248339044,0.00022001,70579.0,70566.0,0.06101275]
[1773248339246,0.00022001,70579.0,70568.0,0.06101275]
[1773248339446,0.001,70577.0,70568.0,0.06101275]
[1773248339678,0.00022001,70579.0,70568.0,0.06101275]
[1773248340037,0.001,70578.0,70568.0,0.06101275]
[1773248340242,0.00022001,70579.0,70570.0,0.06101275]
[1773248340670,0.001,70577.0,70570.0,0.06101275]
[1773248341478,0.001,70577.0,70571.0,0.07085063]
[1773248341686,0.001,70577.0,70571.0,0.13186338]
[1773248341987,0.00022001,70579.0,70571.0,0.13186338]
[1773248342480,0.00022001,70579.0,70572.0,0.06101275]
[1773248343837,0.00122001,70579.0,70573.0,0.07084862]
[1773248345122,0.00022001,70579.0,70573.0,0.07084862]
[1773248345535,0.11317743,70586.0,70574.0,0.06101275]
[1773248345733,0.00022001,70587.0,70574.0,0.06101275]
[1773248345934,0.00022001,70587.0,70576.0,0.06101275]
[1773248346138,0.001,70579.0,70576.0,0.06101275]
[1773248346282,0.07105461,70587.0,70576.0,0.06245275]
[1773248346685,0.11188057,70587.0,70576.0,0.00144]
[1773248347338,0.07105461,70587.0,70576.0,0.00144]
[1773248347810,0.07205461,70587.0,70576.0,0.00144]
[1773248348213,0.07105461,70587.0,70576.0,0.07228461]
[1773248348643,0.00022001,70579.0,70576.0,0.13329736]
[1773248349231,0.00022001,70579.0,70576.0,0.07228461]
[1773248349461,0.00022001,70579.0,70577.0,0.06101275]
[1773248350651,0.00022001,70579.0,70578.0,0.0708436]
[1773248351455,0.00022001,70579.0,70576.0,0.00144]
[1773248351661,0.00022001,70579.0,70572.0,0.07248878]
[1773248353732,0.00022001,70579.0,70572.0,0.13350153]
[1773248354313,0.00022001,70579.0,70572.0,0.07248878]
[1773248360682,0.00022001,70579.0,70573.0,0.05660247]
[1773248361588,0.00022001,70579.0,70573.0,0.12745049]
[1773248361965,0.00022001,70579.0,70572.0,0.07248862]
[1773248361966,0.00022001,70579.0,70572.0,0.00164]
[1773248362287,0.07106321,70579.0,70572.0,0.07248941]
[1773248362490,0.00022001,70579.0,70572.0,0.07248941]
[1773248362694,0.0001603,70579.0,70572.0,0.07248941]
[1773248365309,0.00038031,70579.0,70572.0,0.07248941]
[1773248367084,0.11317743,70592.0,70573.0,0.05660247]
[1773248367341,0.00022001,70594.0,70581.0,0.05660247]
[1773248367542,0.00022001,70594.0,70583.0,0.05660247]
[1773248367745,0.00022001,70594.0,70585.0,0.05660247]
[1773248369683,0.03988177,70589.0,70574.0,0.07084701]
[1773248369874,0.11071533,70588.0,70576.0,0.00144]
[1773248370091,0.03988177,70588.0,70576.0,0.00144]
[1773248371183,0.04088177,70588.0,70576.0,0.00144]
[1773248371554,0.04010178,70588.0,70576.0,0.00144]
[1773248371726,0.04110178,70588.0,70577.0,0.0708446]
[1773248372140,0.03953617,70587.0,70572.0,0.07104933]
[1773248372550,0.11317743,70587.0,70572.0,0.07104933]
[1773248372750,0.03953617,70586.0,70572.0,0.07104933]
[1773248373186,0.03942156,70585.0,70572.0,0.07104933]
[1773248373386,0.00144,70584.0,70572.0,0.07104933]
[1773248373601,0.03942156,70583.0,70572.0,0.07104933]
[1773248373971,0.07083959,70582.0,70572.0,0.07104933]
[1773248374177,0.11026034,70583.0,70572.0,0.07104933]
[1773248374490,0.001,70584.0,70573.0,0.05660247]
[1773248375004,0.14156111,70585.0,70573.0,0.05660247]
[1773248375207,0.001,70582.0,70573.0,0.05660247]
[1773248376378,0.14156111,70584.0,70574.0,0.07084762]
[1773248376710,0.14156111,70585.0,70574.0,0.07084762]
[1773248376938,0.14156111,70584.0,70574.0,0.07084762]
[1773248377092,0.21239785,70585.0,70572.0,0.0002]
[1773248377319,0.03896595,70583.0,70572.0,0.07104915]
[1773248378144,0.14156111,70584.0,70572.0,0.07104915]
[1773248378523,0.21239881,70584.0,70572.0,0.07104915]
[1773248379969,0.14156111,70584.0,70572.0,0.07104915]
[1773248380173,0.001,70583.0,70573.0,0.05660247]
[1773248380375,0.14156111,70584.0,70573.0,0.05660247]
[1773248380525,0.14156111,70585.0,70574.0,0.07084762]
[1773248381134,0.14156111,70584.0,70574.0,0.07084762]
[1773248381334,0.14156111,70585.0,70574.0,0.07084762]
[1773248381539,0.14156111,70584.0,70574.0,0.07084762]
[1773248381742,0.14156111,70585.0,70574.0,0.07084762]
[1773248381987,0.14256111,70585.0,70574.0,0.07084762]
[1773248382293,0.07083758,70584.0,70574.0,0.12628371]
[1773248383288,0.07083758,70584.0,70574.0,0.05543609]
[1773248384077,0.07183758,70584.0,70574.0,0.05543609]
[1773248384409,0.07083758,70584.0,70574.0,0.12628358]
[1773248384591,0.07183758,70584.0,70574.0,0.12628358]
[1773248384793,0.07283758,70584.0,70574.0,0.12628358]
[1773248384994,0.07183758,70584.0,70574.0,0.12628358]
[1773248386170,0.07083758,70584.0,70574.0,0.12628358]
[1773248386408,0.07183758,70584.0,70574.0,0.12628358]
[1773248386567,0.07283758,70584.0,70574.0,0.12628358]
[1773248387262,0.07183758,70584.0,70574.0,0.12628358]
[1773248387539,0.07083758,70584.0,70574.0,0.12628358]
[1773248388180,0.07083758,70584.0,70575.0,0.00144]
[1773248390079,0.14156111,70585.0,70577.0,0.05931743]
[1773248390396,0.00022001,70587.0,70577.0,0.05931743]
[1773248391299,0.00022001,70587.0,70578.0,0.0708436]
[1773248391521,0.00022001,70588.0,70579.0,0.05931743]
[1773248391653,0.07105406,70588.0,70579.0,0.05931743]
[1773248393441,0.07105406,70588.0,70580.0,0.07084159]
[1773248393653,0.07248749,70595.0,70582.0,0.05920701]
[1773248393654,0.00022001,70595.0,70582.0,0.05920701]
[1773248393800,0.07104685,70595.0,70582.0,0.05920701]
[1773248394610,0.07104685,70595.0,70584.0,0.05953889]
[1773248395038,0.07104685,70595.0,70580.0,0.00144]
[1773248395039,0.07082855,70593.0,70580.0,0.00144]
[1773248395222,0.00099264,70592.0,70578.0,0.07084315]
[1773248395433,0.00099264,70590.0,70578.0,0.07084315]
[1773248395837,0.07083055,70591.0,70578.0,0.07084315]
[1773248396069,0.00022001,70596.0,70581.0,0.05953889]
[1773248396264,0.00022001,70596.0,70586.0,0.06009224]
[1773248397659,0.00022001,70596.0,70587.0,0.07083457]
[1773248397844,0.00022001,70596.0,70588.0,0.06009224]
[1773248398779,0.00022001,70602.0,70588.0,0.06009224]
[1773248398984,0.2821182,70597.0,70588.0,0.06009224]
[1773248399187,0.00022001,70602.0,70591.0,0.05997833]
[1773248399310,0.2821182,70601.0,70591.0,0.05997833]
[1773248399716,0.2821182,70601.0,70593.0,0.05997833]
[1773248400165,0.35293968,70601.0,70592.0,0.07082955]
[1773248400369,0.35293968,70601.0,70591.0,0.07227009]
[1773248400594,0.2821182,70601.0,70591.0,0.07227009]
[1773248400804,0.2821182,70601.0,70592.0,0.05524853]
[1773248401185,0.2821182,70601.0,70591.0,0.07227009]
[1773248401386,0.07247681,70605.0,70591.0,0.07227009]
[1773248401387,0.00022001,70607.0,70592.0,0.05524853]
[1773248401606,0.16942468,70627.0,70591.0,0.07083009]
[1773248401607,0.11348165,70625.0,70601.0,0.05524853]
[1773248401806,0.07079796,70624.0,70609.0,0.05524853]
[1773248402010,0.00022001,70625.0,70611.0,0.05524853]
[1773248402214,0.07245652,70625.0,70611.0,0.05524853]
[1773248402616,0.07101977,70621.0,70611.0,0.05524853]
[1773248402817,0.0002183,70621.0,70611.0,0.05524853]
[1773248403036,0.0708005,70621.0,70611.0,0.05524853]
[1773248403736,0.25537275,70619.0,70602.0,0.00144]
[1773248403886,0.05823457,70618.0,70602.0,0.00144]
[1773248404291,0.05823457,70618.0,70602.0,0.05524853]
[1773248404543,0.00022001,70609.0,70602.0,0.05524853]
[1773248405648,0.00022001,70609.0,70601.0,0.07226052]
[1773248405781,0.05679457,70607.0,70589.0,0.05533713]
[1773248406123,0.00022001,70609.0,70589.0,0.05541075]
[1773248406324,0.00022001,70609.0,70591.0,0.05524853]